Cogmind - Beta 9.1 @@@ ROGUE MODE // 2019.10.24 @ 10:46:13 // Halloween2019/Abominations Player: PhenomPhear Result: Destroyed by Minor Abomination with Beam Rifle Performance ------------- Evolutions (1) 500 Regions Visited (2) 400 Robots Destroyed (13) 65 Value Destroyed (590) 590 Prototype IDs (2) 40 Alien Tech Used (0) 0 Bonus (0) 0 TOTAL SCORE: 1595 Bonus ------- None Cogmind --------- Core Integrity 0/400 Matter 290/300 Energy 99/100 System Corruption 7% Temperature Cool (9) Location -9/Materials Parts ------- Power (1) Propulsion (2) Utility (2) Weapon (4) Inventory (4) Light Treads Large Matter Pod (150) Improved Power Shielding Medium Laser Peak State ------------ Power Heavy Ion Engine Propulsion Light Treads Light Treads Utility Small Storage Unit Signal Interpreter Weapon Small Laser Beam Rifle Improved Medium Laser Improved Light Cannon Inventory Ion Engine Light Treads Large Matter Pod Improved Power Shielding Medium Laser [Rating: 15] Favorites ----------- Power Ion Engine Engine Ion Engine Propulsion Light Treads Treads Light Treads Utility Small Storage Unit Storage Small Storage Unit Processor Signal Interpreter Weapon Small Laser Energy Gun Small Laser Ballistic Gun Assault Rifle Ballistic Cannon Improved Light Cannon Build | -11 -10 -9 ------- Run | Scr Mat Mat Slots Evolved 2 | . . 2 Power . | . . . Propulsion . | . . . Utility . | . . . Weapon 2 | . . 2 Parts Attached 16 | 4 5 7 Power 4 | 1 . 3 Engine 4 | 1 . 3 Core . | . . . Reactor . | . . . Propulsion 3 | 2 . 1 Treads 3 | 2 . 1 Leg . | . . . Wheel . | . . . Hover . | . . . Flight . | . . . Utility 2 | 1 1 . Device . | . . . Storage 1 | 1 . . Processor 1 | . 1 . Hackware . | . . . Protection . | . . . Artifact . | . . . Weapon 7 | . 4 3 Energy Gun 4 | . 2 2 Energy Cannon . | . . . Ballistic Gun 2 | . 2 . Ballistic Cannon 1 | . . 1 Launcher . | . . . Special Weapon . | . . . Impact Weapon . | . . . Slashing Weapon . | . . . Piercing Weapon . | . . . Special Melee Weapon . | . . . Unidentified Prototypes 2 | . . 2 Parts Lost 5 | . 2 3 Power 1 | . . 1 Propulsion 1 | . . 1 Utility . | . . . Weapon 3 | . 2 1 Highest Loss Streak 3 | . 2 3 Average Slot Usage (%) 83 | . 88 79 Engine 11 | . 14 8 Treads 23 | . 28 17 Storage 11 | . 14 8 Processor 11 | . 12 10 Energy Gun 16 | . 8 24 Ballistic Gun 5 | . 10 . Ballistic Cannon 3 | . . 8 Naked Turns 24 | . . 24 Heaviest Build 20 | 9 12 20 Greatest Support 40 | 40 40 40 Greatest Overweight (x) 6 | . . 6 Average Overweight (x) . | . . . Largest Inventory Capacity 6 | 6 6 6 Average Capacity 5 | 4 6 5 Most Carried 5 | 4 4 5 Average Carried 2 | 2 2 3 Final Capacity 4 | . . 4 Final Carried 4 | . . 4 Class Distribution -------------------- 69% | Mutant 30% | Gunner Dominant Class ---------------- Mutant | -10/Materials Gunner | -9/Materials Resources | -11 -10 -9 ----------- Run | Scr Mat Mat Matter Collected 612 | 129 199 284 Remotely . | . . . Salvage Created 568 | . 299 269 Parts 28 | . 19 9 Haulers Intercepted 1 | . . 1 Recyclers Shooed . | . . . Parts Field Recycled . | . . . Retrieved Matter . | . . . Parts Self-Destructed . | . . . Prevented . | . . . Kills | -11 -10 -9 ------- Run | Scr Mat Mat Combat Hostiles Destroyed 10 | . 6 4 Guns 10 | . 6 4 Classes Destroyed 5 | . 2 3 Hauler 1 | . . 1 Operator 1 | . . 1 Grunt 4 | . 3 1 Abomination 6 | . 3 3 Anomaly 1 | . . 1 Best Kill Streak 3 | . 3 2 Combat Bots Only 3 | . 3 1 Max Kills in Single Turn 1 | . 1 1 Gunslinging . | . . . Exploded . | . . . Melee . | . . . Uniques/NPCs Destroyed . | . . . Combat | -11 -10 -9 -------- Run | Scr Mat Mat Damage Taken 1687 | . 628 1059 Core 591 | . 184 407 Absorbed by Shields . | . . . Core Remaining (%) 63 | 100 26 . Volleys Fired 38 | . 23 15 Largest 4 | . 2 4 Hottest 191 | . 90 191 Shots Fired 93 | . 41 52 Gun 80 | . 41 39 Cannon 13 | . . 13 Launcher . | . . . Special . | . . . Kinetic 39 | . 26 13 Thermal 54 | . 15 39 Explosive . | . . . Electromagnetic . | . . . Robot Hit Streak 19 | . 19 9 Robot Miss Streak 6 | . 1 6 Penetration Max . | . . . Secondary Targets . | . . . Shots Hit Robots 60 | . 35 25 Core Hits 28 | . 12 16 Critical Hits 1 | . . 1 Critical Kills 1 | . . 1 Critical Parts Destroyed . | . . . Melee Attacks . | . . . Impact . | . . . Slashing . | . . . Piercing . | . . . Sneak Attacks . | . . . Combat Hostiles . | . . . Follow-up Attacks . | . . . Damage Inflicted 913 | . 446 467 Guns 774 | . 446 328 Cannons 128 | . . 128 Explosions . | . . . Melee . | . . . Ramming 11 | . . 11 Kinetic 384 | . 256 128 Thermal 518 | . 190 328 Explosive . | . . . Electromagnetic . | . . . Impact . | . . . Slashing . | . . . Piercing . | . . . Highest Corruption 7 | . . 7 Average Corruption 4 | . . 4 Corruption Purged . | . . . Effects 5 | . . 5 Message Errors 1 | . . 1 Matter Fused 2 | . . 2 Energy Discharges 1 | . . 1 Data Loss (major) 1 | . . 1 Overload Shots . | . . . Overflow Damage . | . . . Projectiles . | . . . Explosions . | . . . Melee . | . . . Knockbacks 1 | . . 1 Impact . | . . . Kinetic 1 | . . 1 Secondary . | . . . Self-Inflicted Damage 5 | . . 5 Shots . | . . . Rammed 3 | . . 3 Targets Rammed 3 | . . 3 Kicked . | . . . Crushed . | . . . Highest Temperature 1113 | . 78 1113 Average Temperature 212 | . 30 264 Received Heat Transfer 546 | . 162 384 Effects 21 | . . 21 Shutdowns 2 | . . 2 Energy Bleed 2 | . . 2 Interference 2 | . . 2 Matter Decay 6 | . . 6 Short Circuit 3 | . . 3 Damage (minor) 1 | . . 1 Damage (major) 3 | . . 3 Damage (core) 2 | . . 2 Siege Activations . | . . . Robots Corrupted . | . . . Combat Hostiles . | . . . Parts Fried . | . . . Impact Corruptions . | . . . Robots Melted . | . . . Combat Hostiles . | . . . Parts Melted 1 | . 1 . Heat Transferred 707 | . 298 409 Parts Sabotaged . | . . . Parts Stolen . | . . . Parts Stripped . | . . . Power Chain Reactions . | . . . Missiles Intercepted . | . . . Alert | -11 -10 -9 ------- Run | Scr Mat Mat Peak Influence 85 | . 85 72 Average Influence 33 | . 43 27 Maximum Alert Level . | . . . Low Security (%) 100 | . . . Level 1 . | . . . Level 2 . | . . . Level 3 . | . . . Level 4 . | . . . Level 5 . | . . . High Security . | . . . Max Security . | . . . Squads Dispatched 14 | . 4 10 Investigation 4 | . 2 2 Extermination . | . . . Reinforcement 8 | . 2 6 Assault 2 | . . 2 Garrison . | . . . Intercept . | . . . Construction Impeded . | . . . Haulers Reinforced . | . . . Stealth | -11 -10 -9 --------- Run | Scr Mat Mat Distress Signals 10 | . 2 8 Communications Jammed . | . . . Distress Signals . | . . . Times Spotted 35 | . 17 18 Peak Tracking Total 8 | . 4 8 Tactical Retreats 5 | . 2 3 Traps | -11 -10 -9 ------- Run | Scr Mat Mat Traps Triggered . | . . . Indirectly . | . . . Trap Hack Attempts . | . . . Triggered . | . . . Disarmed . | . . . Reprogrammed . | . . . Reused . | . . . Traps Extracted . | . . . Installed . | . . . Triggered . | . . . Machines | -11 -10 -9 ---------- Run | Scr Mat Mat Machines Disabled . | . . . Max in Single Turn . | . . . Machines Sabotaged . | . . . Garrisons Compromised . | . . . Overloaded Fab Kills . | . . . Fab Network Shutdowns . | . . . Hacking | -11 -10 -9 --------- Run | Scr Mat Mat Machines Accessed 1 | . . 1 Terminals 1 | . . 1 Fabricators . | . . . Repair Stations . | . . . Recycling Units . | . . . Scanalyzers . | . . . Garrison Access . | . . . Total Hacks 1 | . . 1 Successful 1 | . . 1 Failed . | . . . Catastrophic . | . . . Database Lockouts . | . . . Manual . | . . . Terminals 1 | . . 1 Fabricators . | . . . Repair Stations . | . . . Recycling Units . | . . . Scanalyzers . | . . . Garrison Access . | . . . Terminal Hacks 1 | . . 1 Alert Level 1 | . . 1 Fabricator Hacks . | . . . Repair Station Hacks . | . . . Recycling Unit Hacks . | . . . Scanalyzer . | . . . Garrison Access Hacks . | . . . Unauthorized Hacks . | . . . Terminals . | . . . Fabricators . | . . . Repair Stations . | . . . Recycling Units . | . . . Scanalyzers . | . . . Garrison Access . | . . . Data Cores Recovered . | . . . Used . | . . . Hacking Detections . | . . . Full Trace Events . | . . . Feedback Events . | . . . Feedback Blocked . | . . . Robot Schematics Acquired . | . . . Robots Built . | . . . Matter . | . . . Time . | . . . Total Robot Build Rating . | . . . Part Schematics Acquired . | . . . Parts Built . | . . . Matter . | . . . Time . | . . . Total Part Build Rating . | . . . Parts Repaired . | . . . Time . | . . . Parts Recycled . | . . . Recycled Matter . | . . . Retrieved Matter . | . . . Retrieved Components . | . . . Parts Scanalyzed . | . . . Part Schematics Acquired . | . . . Parts Damaged . | . . . Bothacking | -11 -10 -9 ------------ Run | Scr Mat Mat Used RIF Installer . | . . . Robots Hacked . | . . . Non-combat . | . . . Combat . | . . . Robot Hacks Applied . | . . . Relay Couplers Released . | . . . Robots Rewired . | . . . Allies Hacked . | . . . Hacks Repelled . | . . . Allies | -11 -10 -9 -------- Run | Scr Mat Mat Total Allies . | . . . Largest Group . | . . . Highest-Rated Group . | . . . Highest-Rated Ally . | . . . Total Orders . | . . . Ally Attacks . | . . . Total Damage . | . . . Kills . | . . . Allies Corrupted . | . . . Allies Melted . | . . . Intel | -11 -10 -9 ------- Run | Scr Mat Mat Robot Analysis Total . | . . . Derelict Logs Recovered . | . . . Drone Launches . | . . . Drone Recoveries . | . . . Exploration | -11 -10 -9 ------------- Run | Scr Mat Mat Turns Passed 869 | 71 424 374 Spaces Moved 535 | 60 218 257 Core 147 | 32 . 115 Treads 388 | 28 218 142 Legs . | . . . Wheels . | . . . Hover . | . . . Flight . | . . . Fastest Speed 50 | 50 160 50 Average Speed 131 | 101 160 113 Slowest Speed 350 | 160 160 350 Overloaded Moves . | . . . Propulsion Burnouts . | . . . Robots Hopped . | . . . Cave-ins Triggered . | . . . Exploration Rate (%) 28 | 3 48 33 Regions Visited 2 Branch Regions . Pre-discovered Areas . | . . . Known Exits Taken 1 | . 1 . Unknown Exits Taken 1 | 1 . . Scrap Searched . | . . . Spaces Dug . | . . . Terrain Destroyed . | . . . Melee . | . . . Projectile . | . . . AOE . | . . . Actions | -11 -10 -9 --------- Run | Scr Mat Mat Total 627 | 70 254 303 Wait 22 | . 9 13 Move 532 | 59 216 257 Hop . | . . . Pick Up 9 | 7 1 1 Fast Attach 7 | 1 2 4 Attach 7 | 3 3 1 Detach . | . . . Swap 2 | . . 2 Drop 7 | . . 7 Fire 38 | . 23 15 Melee . | . . . Ram 3 | . . 3 Kick . | . . . Crush . | . . . Escape Stasis . | . . . Rewire . | . . . Trap . | . . . Miscellaneous . | . . . Route ------- -11/Scrapyard -10/Materials -9/Materials History --------- Turn | Location | Event 5 | -11/Scrapyard | Discovered new exit (range 16) 72 | -11/Scrapyard | Entered Materials 295 | -10/Materials | Discovered new exit (range 16) 314 | -10/Materials | Build established: Mutant 337 | -10/Materials | Core integrity fell below 50% 358 | -10/Materials | Identified exit to Mines 475 | -10/Materials | Discovered new exit (range 14) 494 | -10/Materials | Identified exit to Materials 496 | -10/Materials | Entered another Materials area 496 | -9/Materials | Evolved 2 slots: Weapon x2 757 | -9/Materials | Discovered new exit (range 7) 815 | -9/Materials | Core integrity fell below 50% 831 | -9/Materials | Discovered new exit (range 16) 845 | -9/Materials | Lost 3 parts (1p1n1w) 853 | -9/Materials | Core integrity fell below 20% 870 | -9/Materials | Destroyed by Minor Abomination with Beam Rifle Last Messages --------------- 00816_ ALERT: Dispatching additional forces to engage threats. 00816_ K-01 Serf collects debris. 00817_ Matter Anomaly forced to warp away. 00817_ 12 Matter blinks away. 00828_ R-06 Scavenger destroyed. 00829_ Hungry Anomaly eats Com. Wheel. 00829_ Unstable Anomaly suddenly flashes brightly. 00830_ Hungry Anomaly eats Com. Wheel. 00830_ Unstable Anomaly suddenly flashes brightly. 00831_ EXIT=FOUND (Blocked) 00842_ Acquired Lgt. Ion Engine. 00844_ Acquired 10 matter. 00846_ Hit by a wave of energy. 00846_ Lgt. Ion Engine ripped off. 00846_ Signal Interpreter ripped off. 00847_ CCL> J=JUW, GZG>YI KQFMC 00847_ Minor Abomination absorbs Lgt. Ion Engine. 00862_ 12 Matter blinks away. 00867_ ALERT: Dispatching additional forces to engage threats. 00869_ System corrupted: Matter fused (-10). Map ----- +----------------------------------------------------+ | % %#???????????# ## " #????????????????? | | #???????????? #" " #????????????????? | | #?????????????? "" " #????????????????? | | #???????????????? "" " #???????????????? | | % #??????????????####"""" ################## | | #?????????????## %% %% % ] | | #????????????? # % ]] | | %##? ???????????#[=% %% %% % %% | | ##+###??????###!]"##############+### #### | | % #??#####"#%" ??????????? ??# #????? | | +??"""" #%" #?????????? ???# #????? | | # """"" " ; ###???????# ????# ###### | | % % # """"" ;%;"""######??# ?????# | | % # ; ; %%#??#??????# | | % %%% + ;%; """ #?????????# | | # #%;%=""" #?????????# ###### | | % ##""######%; """% #?????????# #????# | | %##### ; % % #?????????# #????# | | % % n; %""" % #?????????+ #????# | | %< ; """ #?????????# %#????# | | %; """ #?????????# #????# | | #####% %;] ##????????# #????# | | ###### ##??## #;;;;;;#;#;########## % #????# | | ?????# #???# #;; ;; ; A;% #????? | | ?????# #???# %% % %;;;;;; ; #????? | | ?????## ##???# @ % ; ; #????? | | ??????######????# %;;;;;;; % %; #???## | | ????????????????##+####### ; %A; #???# | | ???????????????? %%??????###### # #???# | | ??????????????? ??????????????% ## ##???# | | ??????????????# %%????????????????? ??# #????# | | ??????????????# ???????????????? ??# #????# | | ??????????????# ???????????????##???# ###### | | ??????????????# ????????????????????# / | | ??????????????# %????????????????????##+###### | | ??????????????# ??????????????????????# ## | | ??????????????####??????????????????????# T ### | | ????????????????????????????????????????# #?? | | ????????????????????????????????????????# #?? | | ????????????????????????????????????????# #?? | | ????????????????????????????????????????# #?? | | ????????????????????????????????????????########?? | | ?????????????????????????????????????????????????? | | ?????????????????????????????????????????????????? | | ?????????????????????????????????????????????????? | | ?????????????????????????????????????????????????? | | ?????????????????????????????????????????????????? | | ?????????????????????????????????????????????????? | | ?????????????????????????????????????????????????? | | ?????????????????????????????????????????????????? | +----------------------------------------------------+ Best States ------------- Heat Dissipation 28 Energy Generation 10 Energy Capacity 250 Matter Stores 300 Matter Capacity 300 Sight Range 16 Terrain Scan Density 10 Evasion (%) 50 Recoil Reduction 2 Item Schematics ----------------- None Robot Schematics ------------------ None Fabricated ------------ Nothing Alien Tech Used ----------------- None Achievements -------------- None Challenges ------------ None Game ------ Seed MetafieldNeutronBoregun Manual? 0 Play Time 00:14:01 Cumulative 1009.1 hours Start 2019.10.24 @ 10:36:46 End 2019.10.24 @ 10:46:13 Sessions 1 Manual Loads 0 Difficulty Rogue Special Mode Halloween2019/Abominations Game No. 593 Rogue 593 Adventurer 0 Explorer 0 Win Type - Total 17 Types 9/1/4/3/0/0/0 Lore% 89 Gallery% 94 Achievement% 80 Wizard Run 0 Options --------- ASCII 0 Keyboard 0 Movement Mouse Keybinds 0 Fullscreen 2 Font 24/Crisp Map View 76x50 Tactical HUD 1 Map Filters NONE Filters NONE Steam 1 RUN: 1117c7bb-ba5f-4365-a285-5ef6194ceb99